Cogmind - Beta 13 @@@ ROGUE MODE // 2024.04.16 @ 17:33:25 Player: blackdogzx Result: Destroyed by G-47 Trooper with Particle Gun Performance ------------- Evolutions (1) 500 Regions Visited (5) 1000 Robots Destroyed (38) 190 Value Destroyed (733) 733 Prototype IDs (24) 480 Alien Tech Used (0) 0 Bonus (300) 300 TOTAL SCORE: 3203 Bonus ------- Aligned with FarCom 300 Cogmind --------- Core Integrity 0/400 Matter 300/300 Energy 33/100 System Corruption 0% Temperature Cool (9) Movement Core (50) Location -8/Mines Parts ------- > --- POWER (1) -------- (None) > --- PROPULSION (2) --- (None) > --- UTILITY (4) ------ Targeting Computer > --- WEAPON (2) ------- (None) > --- INVENTORY (5) ---- Light Armor Plating AWS/Autocannon Ripper Peak State ------------ > --- POWER ------------ Light Ion Engine > --- PROPULSION ------- Aluminum Leg Aluminum Leg > --- UTILITY ---------- Small Storage Unit Targeting Computer ECM Suite > --- WEAPON ----------- Pulse Rifle Improved Assault Rifle > --- INVENTORY -------- Reinforced Deuterium Engine Light Armor Plating AWS/Autocannon Mini Grenade Launcher Datajack Ripper [Rating: 16] Favorites ----------- Power Light Ion Engine Engine Light Ion Engine Propulsion Aluminum Leg Treads Light Treads Leg Aluminum Leg Utility Small Storage Unit Device ECM Suite Storage Small Storage Unit Processor Targeting Computer Protection Light Armor Plating Weapon Improved Assault Rifle Energy Gun Small Laser Energy Cannon Particle Cannon Ballistic Gun Improved Assault Rifle Build | -11 -10 -9 -9 -9 -8 ------- Run | Yrd Mat Mat Min Exi Min Slots Evolved 2 | . . 2 . . . Power . | . . . . . . Propulsion . | . . . . . . Utility 2 | . . 2 . . . Weapon . | . . . . . . Parts Attached 25 | 6 1 15 1 1 1 Power 4 | 1 . 2 . 1 . Engine 4 | 1 . 2 . 1 . Core . | . . . . . . Reactor . | . . . . . . Propulsion 8 | 2 . 6 . . . Treads 4 | . . 4 . . . Leg 4 | 2 . 2 . . . Wheel . | . . . . . . Hover . | . . . . . . Flight . | . . . . . . Utility 5 | 1 1 3 . . . Device 1 | . . 1 . . . Storage 1 | 1 . . . . . Processor 1 | . 1 . . . . Hackware . | . . . . . . Protection 2 | . . 2 . . . Artifact . | . . . . . . Weapon 8 | 2 . 4 1 . 1 Energy Gun 3 | 2 . . . . 1 Energy Cannon 1 | . . 1 . . . Ballistic Gun 4 | . . 3 1 . . Ballistic Cannon . | . . . . . . Launcher . | . . . . . . Special Weapon . | . . . . . . Impact Weapon . | . . . . . . Slashing Weapon . | . . . . . . Piercing Weapon . | . . . . . . Special Melee Weapon . | . . . . . . Unidentified Prototypes 1 | . . 1 . . . Parts Lost 15 | . 2 5 1 . 7 Power 3 | . 1 1 . . 1 Propulsion 4 | . 1 1 . . 2 Utility 3 | . . 1 . . 2 Weapon 5 | . . 2 1 . 2 Highest Loss Streak 7 | . 2 2 1 . 7 To Critical Strikes . | . . . . . . Average Slot Usage (%) 87 | . 97 84 87 88 77 Engine 10 | . 13 9 11 11 8 Treads 3 | . . 10 . . . Leg 17 | . 27 5 22 22 17 Device 9 | . . 9 11 11 10 Storage 11 | . 14 11 11 11 8 Processor 11 | . 12 11 11 11 11 Protection 1 | . . 5 . . . Energy Gun 4 | . 28 3 . . 10 Energy Cannon 1 | . . 5 . . . Ballistic Gun 15 | . . 12 21 22 11 Naked Turns . | . . . . . . Heaviest Build 24 | 13 13 24 16 14 16 Greatest Support 40 | 20 20 40 20 20 20 Greatest Overweight (x) 7 | 1 . 7 . . 2 Average Overweight (x) . | . . . . . . Largest Inventory Capacity 8 | 8 8 8 8 8 8 Average Capacity 7 | 7 8 8 8 8 7 Most Carried 8 | 5 3 6 4 8 8 Average Carried 4 | . 1 3 3 7 7 Final Capacity 8 | 8 8 8 8 8 5 Final Carried 8 | . 3 3 4 8 5 Class Distribution -------------------- 60% | Scavenger-Mutant 39% | Mutant Dominant Class ---------------- Mutant | -10/Materials Mutant | -9/Materials Scavenger-Mutant | -9/Mines Scavenger-Mutant | -9/Exiles Mutant | -8/Mines Resources | -11 -10 -9 -9 -9 -8 ----------- Run | Yrd Mat Mat Min Exi Min Matter Collected 678 | 177 86 366 39 10 . Remotely . | . . . . . . Salvage Created 973 | . 183 667 73 . 50 Parts 82 | . 14 56 12 . . Haulers Intercepted . | . . . . . . Recyclers Shooed 1 | . 1 . . . . Parts Field Recycled . | . . . . . . Retrieved Matter . | . . . . . . Parts Self-Destructed . | . . . . . . Prevented . | . . . . . . Kills | -11 -10 -9 -9 -9 -8 ------- Run | Yrd Mat Mat Min Exi Min Combat Hostiles Destroyed 34 | . 8 21 4 . 1 Guns 28 | . 8 15 4 . 1 Cannons 6 | . . 6 . . . Classes Destroyed 6 | . 2 4 . . . Worker 2 | . . 1 1 . . Builder 1 | . . 1 . . . Operator 1 | . . 1 . . . Swarmer 21 | . 6 11 4 . . Grunt 11 | . 2 8 . . 1 Sentry 2 | . . 2 . . . Best Kill Streak 6 | . 3 6 5 . 1 Combat Bots Only 5 | . 3 5 4 . 1 Max Kills in Single Turn 2 | . 2 1 1 . 1 Gunslinging 1 | . 1 . . . . Exploded . | . . . . . . Melee . | . . . . . . Uniques/NPCs Destroyed . | . . . . . . Combat | -11 -10 -9 -9 -9 -8 -------- Run | Yrd Mat Mat Min Exi Min Hostile Shots Fired 231 | . 38 140 8 . 45 Missed 57 | . 6 43 1 . 7 Damage Taken 1988 | . 329 1004 63 . 592 Core 457 | . 55 151 25 . 226 Absorbed by Shields . | . . . . . . Core Remaining (%) 89 | 100 78 . . . . Volleys Fired 96 | . 14 69 6 . 7 Largest 2 | . 2 2 2 . 2 Hottest 91 | . 90 91 46 . 86 Shots Fired 169 | . 28 117 10 . 14 Gun 130 | . 28 78 10 . 14 Cannon 39 | . . 39 . . . Launcher . | . . . . . . Special . | . . . . . . Kinetic 73 | . . 56 10 . 7 Thermal 96 | . 28 61 . . 7 Explosive . | . . . . . . Electromagnetic . | . . . . . . Robot Hit Streak 9 | . 7 9 8 . 7 Robot Miss Streak 5 | . 1 5 1 . 1 Penetration Max . | . . . . . . Secondary Targets 5 | . 3 2 . . . Max Gunslinging Chain 1 | . 1 1 . . . Shots Hit Robots 108 | . 21 68 8 . 11 Core Hits 50 | 1 11 28 5 . 5 Critical Kills . | . . . . . . Critical Parts Destroyed . | . . . . . . Critical Strikes 3 | . 1 1 . . 1 Burn 3 | . 1 1 . . 1 Melee Attacks . | . . . . . . Impact . | . . . . . . Slashing . | . . . . . . Piercing . | . . . . . . Sneak Attacks . | . . . . . . Combat Hostiles . | . . . . . . Follow-up Attacks . | . . . . . . Damage Inflicted 1773 | 2 260 1176 138 . 197 Guns 1315 | . 257 723 138 . 197 Cannons 453 | . . 453 . . . Explosions . | . . . . . . Melee . | . . . . . . Ramming 5 | 2 3 . . . . Kinetic 754 | . . 522 138 . 94 Thermal 1014 | . 257 654 . . 103 Explosive . | . . . . . . Electromagnetic . | . . . . . . Impact . | . . . . . . Slashing . | . . . . . . Piercing . | . . . . . . Highest Corruption . | . . . . . . Average Corruption . | . . . . . . Corruption Purged . | . . . . . . Corruption Blocked . | . . . . . . Overload Shots . | . . . . . . Overflow Damage 12 | . . 12 . . . Projectiles 12 | . . 12 . . . Explosions . | . . . . . . Melee . | . . . . . . Knockbacks . | . . . . . . Impact . | . . . . . . Kinetic . | . . . . . . Secondary . | . . . . . . Self-Inflicted Damage . | . . . . . . Shots . | . . . . . . Rammed . | . . . . . . Targets Rammed 2 | 1 1 . . . . Kicked 2 | 1 1 . . . . Crushed . | . . . . . . Highest Temperature 511 | . 213 511 . . 241 Average Temperature 141 | . 85 157 . . 136 Received Heat Transfer 825 | . 132 333 . . 360 Effects 12 | . . 9 . . 3 Shutdowns 2 | . . 2 . . . Interference 8 | . . 5 . . 3 Matter Decay 1 | . . 1 . . . Short Circuit 1 | . . 1 . . . Siege Activations . | . . . . . . Robots Corrupted . | . . . . . . Combat Hostiles . | . . . . . . Parts Fried . | . . . . . . Impact Corruptions . | . . . . . . Robots Melted . | . . . . . . Combat Hostiles . | . . . . . . Parts Melted 2 | . 1 . . . 1 Heat Transferred 2425 | . 744 1385 . . 296 Parts Sabotaged . | . . . . . . Parts Stolen . | . . . . . . Parts Stripped . | . . . . . . Power Chain Reactions . | . . . . . . Alert | -11 -10 -9 -9 -9 -8 ------- Run | Yrd Mat Mat Min Exi Min Peak Influence 349 | . 219 349 215 . 30 Initial 130 | . . 87 130 . . Average 138 | . 50 216 135 . 3 Maximum Alert Level 1 | . 1 1 1 . . Low Security (%) 61 | 100 97 51 41 . 100 Level 1 38 | . 2 48 58 . . Level 2 . | . . . . . . Level 3 . | . . . . . . Level 4 . | . . . . . . Level 5 . | . . . . . . High Security . | . . . . . . Max Security . | . . . . . . Squads Dispatched 5 | . 1 4 . . . Investigation 2 | . . 2 . . . Extermination . | . . . . . . Reinforcement 3 | . 1 2 . . . Assault . | . . . . . . Garrison . | . . . . . . Intercept . | . . . . . . Searches Triggered . | . . . . . . Construction Impeded . | . . . . . . Haulers Reinforced . | . . . . . . Active Scanning Responses . | . . . . . . Cargo Convoy Interrupts . | . . . . . . Stealth | -11 -10 -9 -9 -9 -8 --------- Run | Yrd Mat Mat Min Exi Min Distress Signals 4 | . 1 3 . . . Communications Jammed . | . . . . . . Distress Signals . | . . . . . . Times Spotted 54 | . 13 34 4 . 3 Peak Tracking Total 6 | . 5 6 4 . 3 Tactical Retreats 3 | . . 3 . . . Traps | -11 -10 -9 -9 -9 -8 ------- Run | Yrd Mat Mat Min Exi Min Traps Triggered 1 | . . 1 . . . Indirectly . | . . . . . . Trap Hack Attempts . | . . . . . . Triggered . | . . . . . . Disarmed . | . . . . . . Reprogrammed . | . . . . . . Reused . | . . . . . . Traps Extracted . | . . . . . . Installed . | . . . . . . Triggered . | . . . . . . Machines | -11 -10 -9 -9 -9 -8 ---------- Run | Yrd Mat Mat Min Exi Min Machines Disabled 2 | . . 2 . . . Max in Single Turn 1 | . . 1 . . . Machines Repaired . | . . . . . . Machines Dismantled . | . . . . . . Machines Sabotaged . | . . . . . . Overloaded Fab Kills . | . . . . . . Hacking | -11 -10 -9 -9 -9 -8 --------- Run | Yrd Mat Mat Min Exi Min Machines Accessed 7 | . 2 2 . 3 . Terminals 3 | . 2 1 . . . Fabricators . | . . . . . . Repair Stations . | . . . . . . Recycling Units . | . . . . . . Scanalyzers 1 | . . 1 . . . Garrison Access . | . . . . . . Total Hacks 25 | . 4 9 . 12 . Successful 23 | . 2 9 . 12 . Failed 2 | . 2 . . . . Catastrophic . | . . . . . . Database Lockouts . | . . . . . . Manual 6 | . . . . 6 . Terminals 7 | . 4 3 . . . Fabricators . | . . . . . . Repair Stations . | . . . . . . Recycling Units . | . . . . . . Scanalyzers 6 | . . 6 . . . Garrison Access . | . . . . . . Terminal Hacks 17 | . 2 3 . 12 . Record 12 | . . 1 . 11 . Emergency Access Points 1 | . 1 . . . . Alert Level 1 | . 1 . . . . Locate Traps 1 | . . 1 . . . Dispatch Records 1 | . . 1 . . . Derelict Proto ID Bank 1 | . . . . 1 . Fabricator Hacks . | . . . . . . Repair Station Hacks . | . . . . . . Recycling Unit Hacks . | . . . . . . Scanalyzer 6 | . . 6 . . . Insert Component 3 | . . 3 . . . Analyze 3 | . . 3 . . . Garrison Access Hacks . | . . . . . . Unauthorized Hacks . | . . . . . . Terminals . | . . . . . . Fabricators . | . . . . . . Repair Stations . | . . . . . . Recycling Units . | . . . . . . Scanalyzers . | . . . . . . Garrison Access . | . . . . . . Data Cores Recovered . | . . . . . . Used . | . . . . . . Hacking Detections 3 | . 1 2 . . . Full Trace Events 2 | . . 2 . . . Feedback Events . | . . . . . . Feedback Blocked . | . . . . . . Robot Schematics Acquired . | . . . . . . Robots Built . | . . . . . . Authchips . | . . . . . . Time . | . . . . . . Total Robot Build Rating . | . . . . . . Part Schematics Acquired 2 | . . 2 . . . Parts Built . | . . . . . . Authchips . | . . . . . . Time . | . . . . . . Total Part Build Rating . | . . . . . . Parts Repaired . | . . . . . . Time . | . . . . . . Parts Recycled . | . . . . . . Recycled Matter . | . . . . . . Retrieved Matter . | . . . . . . Retrieved Components . | . . . . . . Parts Scanalyzed 2 | . . 2 . . . Part Schematics Acquired 2 | . . 2 . . . Parts Damaged . | . . . . . . Bothacking | -11 -10 -9 -9 -9 -8 ------------ Run | Yrd Mat Mat Min Exi Min Used RIF Installer . | . . . . . . Robots Hacked . | . . . . . . Non-combat . | . . . . . . Combat . | . . . . . . Robot Hacks Applied . | . . . . . . Relay Couplers Released . | . . . . . . Fabnet Peak Effective % . | . . . . . . Robots Rewired . | . . . . . . Allies Hacked . | . . . . . . Hacks Repelled . | . . . . . . Allies | -11 -10 -9 -9 -9 -8 -------- Run | Yrd Mat Mat Min Exi Min Total Allies . | . . . . . . Largest Group . | . . . . . . Highest-Rated Group . | . . . . . . Highest-Rated Ally . | . . . . . . Total Orders . | . . . . . . Ally Attacks . | . . . . . . Total Damage . | . . . . . . Kills . | . . . . . . Allies Corrupted . | . . . . . . Allies Melted . | . . . . . . Intel | -11 -10 -9 -9 -9 -8 ------- Run | Yrd Mat Mat Min Exi Min Robot Analysis Total . | . . . . . . Derelict Logs Recovered 1 | . . . 1 . . Drone Launches . | . . . . . . Drone Recoveries . | . . . . . . Exploration | -11 -10 -9 -9 -9 -8 ------------- Run | Yrd Mat Mat Min Exi Min Turns Passed 3145 | 83 368 883 647 1001 163 Spaces Moved 2150 | 62 265 374 524 824 101 Core 21 | 10 . 4 . . 7 Treads 197 | . . 197 . . . Legs 1932 | 52 265 173 524 824 94 Wheels . | . . . . . . Hover . | . . . . . . Flight . | . . . . . . Fastest Speed 50 | 50 120 120 120 120 50 Average Speed 129 | 110 120 178 120 120 118 Slowest Speed 400 | 190 120 400 120 120 150 Overloaded Moves . | . . . . . . Propulsion Burnouts . | . . . . . . Robots Hopped . | . . . . . . Cave-ins Triggered . | . . . . . . Exploration Rate (%) 48 | 4 41 33 87 94 29 Regions Visited 5 Branch Regions 3 Pre-discovered Areas 1 | . . . . 1 . Known Exits Taken . | . . . . . . Unknown Exits Taken 5 | 1 1 1 1 1 . Scrap Searched 1 | . . . 1 . . Spaces Dug . | . . . . . . Terrain Destroyed . | . . . . . . Melee . | . . . . . . Projectile . | . . . . . . AOE . | . . . . . . Terrain Rammed . | . . . . . . Walls Destroyed . | . . . . . . Machines Disabled . | . . . . . . Actions | -11 -10 -9 -9 -9 -8 --------- Run | Yrd Mat Mat Min Exi Min Total 2332 | 75 287 471 531 838 130 Wait 26 | . 3 . . 3 20 Move 2145 | 61 264 373 523 823 101 Hop . | . . . . . . Pick Up 22 | 5 4 6 1 6 . Fast Attach 13 | 3 . 8 1 . 1 Attach 11 | 3 1 6 . 1 . Detach 5 | . . 4 . 1 . Swap 1 | . . 1 . . . Drop 11 | 2 . 4 . 4 1 Fire 96 | . 14 69 6 . 7 Melee . | . . . . . . Ram . | . . . . . . Kick 2 | 1 1 . . . . Crush . | . . . . . . Escape Stasis . | . . . . . . Rewire . | . . . . . . Trap . | . . . . . . Miscellaneous . | . . . . . . Route ------- -11/Scrapyard -10/Materials (discovered 2 exits: *Mat / [*Min]) -9/Materials (discovered 2 exits: [*Min x2]) -9/Mines (discovered 3 exits: [*Mat x2] / *Exi) -9/Exiles (discovered 2 exits: [*Min x2]) -8/Mines History --------- Turn | Location | Event 17 | -11/Scrapyard | Discovered new exit (range 16) 84 | -11/Scrapyard | Entered Materials 240 | -10/Materials | Discovered new exit (range 9) 300 | -10/Materials | Build established: Mutant 399 | -10/Materials | Discovered new exit (range 10) 452 | -10/Materials | Entered another Materials area 452 | -9/Materials | Evolved 2 slots: Utility x2 498 | -9/Materials | Discovered new exit (range 5) 1322 | -9/Materials | Discovered new exit (range 8) 1335 | -9/Materials | Entered Mines 1370 | -9/Mines | Discovered new exit (range 5) 1569 | -9/Mines | A weapon hastily lodged in a ceiling crevice suddenly fell to the ground 1671 | -9/Mines | Build established: Scavenger-Mutant 1683 | -9/Mines | Learned location of 1 exit from Proximity Caves 1715 | -9/Mines | Discovered new exit (range 9) 1832 | -9/Mines | Deemed a non-threat by the Exiles lab entrance 1833 | -9/Mines | Discovered new exit (range 5) 1982 | -9/Mines | Entered Exiles 2036 | -9/Exiles | Met 8R-AWN 2073 | -9/Exiles | Discovered new exit (range 15) 2132 | -9/Exiles | Met EX-HEX 2205 | -9/Exiles | Met EX-DEC 2300 | -9/Exiles | Met EX-BIN 2316 | -9/Exiles | Aligned with FarCom system 2318 | -9/Exiles | Given EX-Vault access code 2389 | -9/Exiles | Learned location of Zion (-6) 2459 | -9/Exiles | Discovered new exit (range 14) 2607 | -9/Exiles | Opened EX-Vault 2619 | -9/Exiles | Found Prototype Ballistic Cannon 2626 | -9/Exiles | Identified AWS/Autocannon 2660 | -9/Exiles | Warned to stay clear of 0b10 Research branches 2751 | -9/Exiles | Visited The Gauntlet 2983 | -9/Exiles | Left Exiles lab with AWS/Autocannon 2983 | -9/Exiles | Entered Mines 3110 | -8/Mines | Core integrity fell below 50% 3135 | -8/Mines | Core integrity fell below 20% 3146 | -8/Mines | Destroyed by G-47 Trooper with Particle Gun Last Messages --------------- 03121_ Overheating: System interference. 03121_ Imp. Assault Rifle temporarily disabled. 03121_ Targeting Computer temporarily disabled. 03121_ Imp. Assault Rifle temporarily disabled. 03123_ K-01 Serf collects debris. 03125_ Rigged Rnf. Deuterium Engine explodes. 03125_ K-01 Serf destroyed. 03126_ R-06 Scavenger collects Mni. Grenade Launcher. 03130_ R-06 Scavenger collects Lgt. Ion Engine. 03136_ Imp. Assault Rifle destroyed. 03138_ U-05 Engineer lays Concrete. 03139_ ECM Suite destroyed. 03139_ U-05 Engineer lays Concrete. 03141_ Critical hit (Burn: +37). 03142_ Pulse Rifle destroyed. 03142_ U-05 Engineer lays Concrete. 03144_ G-47 Trooper destroyed. 03144_ U-05 Engineer lays Concrete. 03144_ R-06 Scavenger collects Aluminum Leg. 03145_ U-05 Engineer lays Concrete. Map ----- +----------------------------------------------------+ | ?????????????????????????????????????????????????? | | ?????????????????????????????????????????????????? | | ?????????????????????????????????????????????????? | | ?????????????????????????????????????????????????? | | ?????????????????????????????????????????????????? | | ?????????????????????????????????????????????????? | | ?????????????????????????????????????????????????? | | ?????????????????????????????????????????????????? | | ?????????????????????????????????????????????????? | | ?????????????????????????????????????????????????? | | ???????????????????????? ????????????????????????? | | ???????????????????????? ??##????????????????????? | | ???????????????????????? ## ????????????????????? | | ???????????????????????? ????????????????????? | | ???????????????????????? ????????????????????? | | ???????????????????????? ????????????????????? | | ???????????????????????? ?????????????????????? | | ???????????????????????? ?????????????????????? | | ????????????????????????# #?????????????????????? | | ????????????????????????# #?????????????????????? | | ????????????????????????# ##????????????????????? | | ????????????????????????# ?????????????????????? | | ??????????????????????### #?????????????????????? | | ?????????????????????## r #?????????????????????? | | ?????????????????????# #?????????????????????? | | ???????????#?????????# @#??????????????????????? | | ???????????# ???????## ##??????????????????????? | | ???????????# ??????# ##???????????????????????? | | ???????????# ??????#u #????????????????????????? | | ???????????# ????## #????????????????????????? | | ??????????## #?### ##???????????????????????? | | ?????????## ##!%= ##??????????????????????? | | ????????## "%%%gr #####??????????????????? | | ????????# u ##?????????????????? | | ????????# #?????????????????? | | ???????# ## ##?????????????????? | | ??????# ??###### ##??????????????????? | | ?????# ?????????##### ##??????????????????? | | ?????# ?????????####??## #??????????????????? | | ???????????????## ##?# #??????????????????? | | ???????????????# #?# #??????????????????? | | ???????????????# #?# #??????????????????? | | ???????????????# #### ##?????????????????? | | ???????????????# ### #?????????????????? | | ????????????????# ## #?????????????????? | | ?????????????????# #?????????????????? | | ??????????????????# ##?????????????????? | | ??????????????????# ##??????????????????? | | ??????????????????# """ ##??????????????????? | | ????????????????### """ ##??????????####???? | +----------------------------------------------------+ Best States ------------- Heat Dissipation 28 Energy Generation 12 Energy Capacity 265 Matter Stores 300 Matter Capacity 300 Sight Range 16 Terrain Scan Density 10 ECM Strength 1 Armor Coverage 150 Evasion (%) 55 Targeting Accuracy 5 Recoil Reduction 2 Item Schematics ----------------- Imp. Assault Rifle | -9/Materials | Scanalyzed Lgt. Armor Plating | -9/Materials | Scanalyzed Robot Schematics ------------------ None Fabricated ------------ Nothing Alien Tech Used ----------------- None Achievements -------------- None Challenges ------------ None Game ------ Seed alphaworld Manual? 1 Play Time 00:41:05 Cumulative 7.3 hours Start 2024.04.16 @ 16:51:30 End 2024.04.16 @ 17:33:25 Sessions 1 Manual Loads 0 Difficulty Rogue Special Mode None Game No. 10 Rogue 10 Adventurer 0 Explorer 0 Win Type - Total 0 Types 0/0/0/0/0/0/0/0/0 Lore% 8 Gallery% 12 Achievement% 9 Wizard Run 0 Options --------- Layout 0 ASCII 0 Keyboard 0 Movement Numpad Keybinds 0 Fullscreen 1 Font 18/TerminusBold Map View 38x25 Zoom Use 34% Tactical HUD 1 Map Filters NONE Filters NONE Steam 1 RUN: 5021a021-f190-47ee-aebb-efc3d528effa